Cogmind - Beta 15 @@@ ROGUE MODE // 2025.08.10 @ 18:35:14 Player: Mogwok Wargfriend Result: Destroyed by S-10 Pest with Light Assault Rifle Performance ------------- Evolutions (0) 0 Regions Visited (2) 400 Robots Destroyed (30) 150 Value Destroyed (582) 582 Prototype IDs (0) 0 Alien Tech Used (0) 0 Bonus (0) 0 TOTAL SCORE: 1132 Bonus ------- None Cogmind --------- Core Integrity 0/250 Matter 282/300 Energy 160/160 System Corruption 2% Temperature Cool (0) Movement Rolling (95) Ox1 Location -10/Mines Parts ------- > --- POWER (1) -------- Light Nuclear Core > --- PROPULSION (2) --- Wheel (fused) Wheel > --- UTILITY (2) ------ Large Storage Unit Light Armor Plating > --- WEAPON (2) ------- Assault Rifle Heavy Assault Rifle > --- INVENTORY (15) --- Ion Engine Light Ion Engine Light Nuclear Core Aluminum Leg Wheel Wheel Wheel Heat Sink High-capacity Battery (250) Medium Laser Beam Rifle Heavy Assault Rifle Mining Laser Explosive Trap Explosive Trap Peak State ------------ > --- POWER ------------ Light Nuclear Core > --- PROPULSION ------- Wheel Wheel > --- UTILITY ---------- Large Storage Unit Light Armor Plating > --- WEAPON ----------- Assault Rifle Heavy Assault Rifle > --- INVENTORY -------- Ion Engine Light Ion Engine Light Nuclear Core Aluminum Leg Aluminum Leg Wheel Wheel Wheel Heat Sink High-capacity Battery Medium Laser Beam Rifle Mining Laser Explosive Trap Explosive Trap [Rating: 11] Favorites ----------- Power Light Nuclear Core Engine Light Ion Engine Power Core Light Nuclear Core Propulsion Aluminum Leg Leg Aluminum Leg Wheel Wheel Utility Heat Sink Device Heat Sink Storage Large Storage Unit Protection Light Armor Plating Weapon Assault Rifle Energy Gun Small Laser Ballistic Gun Assault Rifle Special Weapon Mining Laser Build | -11 -10 -10 ------- Run | Yrd Mat Min Slots Evolved . | . . . Power . | . . . Propulsion . | . . . Utility . | . . . Weapon . | . . . Parts Attached 26 | 7 13 6 Power 3 | 1 2 . Engine 2 | 1 1 . Core 1 | . 1 . Reactor . | . . . Propulsion 7 | 2 3 2 Treads . | . . . Leg 3 | . 3 . Wheel 4 | 2 . 2 Hover . | . . . Flight . | . . . Utility 6 | 2 3 1 Device 2 | 1 1 . Storage 3 | 1 2 . Processor . | . . . Hackware . | . . . Protection 1 | . . 1 Artifact . | . . . Weapon 10 | 2 5 3 Energy Gun 3 | 1 2 . Energy Cannon . | . . . Ballistic Gun 6 | 1 3 2 Ballistic Cannon . | . . . Launcher . | . . . Special Weapon 1 | . . 1 Impact Weapon . | . . . Slashing Weapon . | . . . Piercing Weapon . | . . . Special Melee Weapon . | . . . Unidentified Prototypes . | . . . Parts Lost 8 | . 7 1 Power 1 | . 1 . Propulsion 3 | . 2 1 Utility 1 | . 1 . Weapon 3 | . 3 . Highest Loss Streak 4 | . 4 1 To Critical Strikes . | . . . Average Backups 10 | 4 10 12 Power 2 | 1 2 3 Propulsion 3 | 1 3 4 Utility 1 | . 1 2 Weapon 3 | . 2 3 Tool/Special . | . . . Unused Backups 23 | . 8 15 Power 4 | . 1 3 Propulsion 12 | . 6 6 Utility 3 | . 1 2 Weapon 4 | . . 4 Tool/Special . | . . . Average Slot Usage (%) 99 | . 99 100 Engine 1 | . 2 . Core 12 | . 11 14 Leg 22 | . 24 18 Wheel 5 | . 3 9 Device 13 | . 14 12 Storage 14 | . 14 14 Energy Gun 7 | . 11 . Ballistic Gun 19 | . 16 25 Peak Build Rating 11 | 7 10 11 Average Rating 9 | 5 9 10 On Entrance 5 | . 7 10 Naked Turns . | . . . Heaviest Build 33 | 12 30 33 Greatest Support 20 | 20 20 20 Greatest Overweight (x) 5 | . 5 2 Average Overweight (x) . | . . 1 Largest Inventory Capacity 15 | 8 15 15 Average Capacity 12 | 7 12 15 Most Carried 15 | 7 13 15 Average Carried 10 | 4 10 13 Final Capacity 15 | 8 15 15 Final Carried 15 | 7 13 15 Class Distribution -------------------- 74% | Mutant 25% | Scavenger-Mutant Dominant Class ---------------- Mutant | -10/Materials Mutant | -10/Mines Resources | -11 -10 -10 ----------- Run | Yrd Mat Min Matter Collected 874 | 303 301 270 Remotely . | . . . Salvage Created 1080 | 100 677 303 Parts 57 | 8 35 14 Haulers Intercepted 2 | . 2 . Recyclers Shooed 4 | . 2 2 Parts Field Recycled . | . . . Retrieved Matter . | . . . Parts Self-Destructed . | . . . Prevented . | . . . Kills | -11 -10 -10 ------- Run | Yrd Mat Min Combat Hostiles Destroyed 17 | . 10 7 Guns 17 | . 10 7 Classes Destroyed 8 | 2 4 2 Worker 6 | . 4 2 Tunneler 3 | 2 . 1 Hauler 2 | . 2 . Recycler 2 | 1 . 1 Watcher 3 | . 3 . Swarmer 1 | . . 1 Grunt 13 | . 10 3 Assembled 3 | . . 3 Best Kill Streak 4 | 2 3 4 Combat Bots Only 2 | . 2 2 Max Kills in Single Turn 1 | 1 1 1 Gunslinging . | . . . Exploded . | . . . Melee . | . . . Uniques/NPCs Destroyed . | . . . Combat | -11 -10 -10 -------- Run | Yrd Mat Min Hostile Shots Fired 122 | . 81 41 Missed 31 | . 20 11 Hits 91 | . 61 30 Projectile 91 | . 61 30 Critical Strikes 2 | . 2 . Damage Taken 1099 | . 753 346 Core 253 | . 167 86 Absorbed by Shields . | . . . Core Remaining (%) 100 | 100 . . Volleys Fired 140 | 11 85 44 Largest 2 | 2 2 2 Hottest 100 | 60 80 100 Shots Fired 257 | 22 160 75 Gun 244 | 22 160 62 Cannon . | . . . Launcher . | . . . Special 13 | . . 13 Kinetic 147 | 11 74 62 Thermal 110 | 11 86 13 Explosive . | . . . Electromagnetic . | . . . Robot Hit Streak 13 | 9 13 7 Robot Miss Streak 7 | 7 3 3 Penetration Max . | . . . Secondary Targets 2 | . 2 . Max Gunslinging Chain 1 | . 1 . Shots Hit Robots 152 | 12 105 35 Core Hits 61 | 4 38 19 Critical Kills . | . . . Critical Parts Destroyed . | . . . Critical Strikes . | . . . Melee Attacks . | . . . Impact . | . . . Slashing . | . . . Piercing . | . . . Sneak Attacks . | . . . Combat Hostiles . | . . . Follow-up Attacks . | . . . Damage Inflicted 1810 | 145 1135 530 Guns 1810 | 145 1135 530 Cannons . | . . . Explosions . | . . . Melee . | . . . Ramming . | . . . Kinetic 1155 | 80 545 530 Thermal 655 | 65 590 . Explosive . | . . . Electromagnetic . | . . . Impact . | . . . Slashing . | . . . Piercing . | . . . Highest Corruption 2 | . 2 2 Average Corruption 2 | . 2 2 Corruption Purged . | . . . Corruption Blocked . | . . . Effects 24 | . 16 8 Message Errors 9 | . 4 5 Matter Fused 4 | . 3 1 Heat Flow Errors 3 | . 2 1 Energy Discharges 2 | . 2 . Parts Fused 1 | . . 1 Data Loss (minor) 2 | . 2 . Data Loss (major) 1 | . 1 . Misfires 1 | . 1 . Alerts 1 | . 1 . Overload Shots . | . . . Overflow Damage . | . . . Projectiles . | . . . Explosions . | . . . Melee . | . . . Knockbacks . | . . . Impact . | . . . Kinetic . | . . . Secondary . | . . . Self-Inflicted Damage . | . . . Shots . | . . . Rammed . | . . . Targets Rammed . | . . . Kicked . | . . . Crushed . | . . . Highest Temperature 263 | . 263 262 Average Temperature 49 | . 41 141 Received Heat Transfer 486 | . 462 24 Siege Activations . | . . . Martial Activations . | . . . Shielding Activations . | . . . Robots Disrupted . | . . . Combat Hostiles . | . . . Robots Corrupted . | . . . Combat Hostiles . | . . . Parts Fried . | . . . Impact Corruptions . | . . . Robots Melted . | . . . Combat Hostiles . | . . . Parts Melted 1 | . 1 . Heat Transferred 1475 | 150 1325 . Parts Sabotaged . | . . . Parts Stolen . | . . . Parts Stripped . | . . . Power Chain Reactions . | . . . Alert | -11 -10 -10 ------- Run | Yrd Mat Min Maximum Alert Level . | . . . Low Security (%) 100 | 100 100 100 Level 1 . | . . . Level 2 . | . . . Level 3 . | . . . Level 4 . | . . . Level 5 . | . . . High Security . | . . . Max Security . | . . . Peak Influence 76 | 10 75 76 Initial . | . . . Average 11 | 1 10 13 Influence Increases 485 | 15 330 140 Destroy 0b10 Robot/C 280 | . 200 80 Destroy 0b10 Robot/NC 80 | 15 45 20 Destroy Leader 70 | . 60 10 Trap Triggered on 0b10 30 | . . 30 Successful Hack 10 | . 10 . Lose Combat Pursuer 15 | . 15 . Influence Decreases 438 | 15 330 93 Time Decay 368 | 15 260 93 Lost Part 70 | . 70 . Squads Dispatched 3 | . 3 . Investigation 2 | . 2 . Extermination . | . . . Reinforcement 1 | . 1 . Assault . | . . . Garrison . | . . . Intercept . | . . . Searches Triggered . | . . . Construction Impeded . | . . . Haulers Reinforced . | . . . Active Scanning Responses . | . . . Cargo Convoy Interrupts . | . . . Stealth | -11 -10 -10 --------- Run | Yrd Mat Min Distress Signals . | . . . Communications Jammed . | . . . Distress Signals . | . . . Times Spotted 29 | . 19 10 Peak Tracking Total 4 | . 4 3 Tactical Retreats 1 | . 1 . Traps | -11 -10 -10 ------- Run | Yrd Mat Min Traps Triggered 2 | . 2 . Indirectly . | . . . Trap Hack Attempts . | . . . Triggered . | . . . Disarmed . | . . . Reprogrammed . | . . . Reused 3 | . . 3 Traps Extracted . | . . . Installed 3 | . . 3 Triggered 3 | . . 3 Most Traps Carried 3 | . . 3 Machines | -11 -10 -10 ---------- Run | Yrd Mat Min Machines Disabled . | . . . Max in Single Turn . | . . . Machines Repaired . | . . . Machines Dismantled . | . . . Machines Sabotaged . | . . . Overloaded Fab Kills . | . . . Hacking | -11 -10 -10 --------- Run | Yrd Mat Min Machines Accessed 9 | . 9 . Terminals 8 | . 8 . Fabricators . | . . . Repair Stations . | . . . Recycling Units 1 | . 1 . Scanalyzers . | . . . Garrison Access . | . . . Total Hacks 24 | . 24 . Successful 14 | . 14 . Failed 10 | . 10 . Catastrophic 1 | . 1 . Database Lockouts . | . . . Manual 17 | . 17 . Terminals 22 | . 22 . Fabricators . | . . . Repair Stations . | . . . Recycling Units 2 | . 2 . Scanalyzers . | . . . Garrison Access . | . . . Terminal Hacks 6 | . 6 . Record 1 | . 1 . Robot Analysis 2 | . 2 . Locate Traps 3 | . 3 . Fabricator Hacks . | . . . Repair Station Hacks . | . . . Recycling Unit Hacks 1 | . 1 . Report Inventory 1 | . 1 . Scanalyzer . | . . . Garrison Access Hacks . | . . . Unauthorized Hacks 7 | . 7 . Terminals 6 | . 6 . Botnet 5 | . 5 . Operators 1 | . 1 . Fabricators . | . . . Repair Stations . | . . . Recycling Units 1 | . 1 . Reject 1 | . 1 . Scanalyzers . | . . . Garrison Access . | . . . Data Cores Recovered . | . . . Used . | . . . Hacking Detections 9 | . 9 . Full Trace Events 1 | . 1 . Feedback Events . | . . . Feedback Blocked . | . . . Robot Schematics Acquired . | . . . Robots Built . | . . . Authchips . | . . . Time . | . . . Total Robot Build Rating . | . . . Part Schematics Acquired . | . . . Parts Built . | . . . Authchips . | . . . Time . | . . . Total Part Build Rating . | . . . Parts Repaired . | . . . Time . | . . . Parts Recycled . | . . . Recycled Matter . | . . . Retrieved Matter . | . . . Retrieved Components . | . . . Parts Scanalyzed . | . . . Part Schematics Acquired . | . . . Parts Damaged . | . . . Bothacking | -11 -10 -10 ------------ Run | Yrd Mat Min Used RIF Installer . | . . . Robots Hacked . | . . . Non-combat . | . . . Combat . | . . . Robot Hacks Applied . | . . . Relay Couplers Released . | . . . Fabnet Peak Effective % . | . . . Robots Rewired . | . . . Allies Hacked . | . . . Hacks Repelled . | . . . Allies | -11 -10 -10 -------- Run | Yrd Mat Min Total Allies . | . . . Largest Group . | . . . Highest-Rated Group . | . . . Highest-Rated Ally . | . . . Total Orders . | . . . Ally Attacks . | . . . Total Damage . | . . . Kills . | . . . Allies Corrupted . | . . . Allies Melted . | . . . Intel | -11 -10 -10 ------- Run | Yrd Mat Min Active Infowar (turns) 289 | 54 235 . Seismic 289 | 54 235 . Robot Analysis Total 2 | . 2 . Derelict Logs Recovered 1 | . . 1 Drone Launches . | . . . Drone Recoveries . | . . . Exploration | -11 -10 -10 ------------- Run | Yrd Mat Min Turns Passed 2515 | 114 1647 754 Spaces Moved 1416 | 83 934 399 Core 13 | 8 5 . Treads . | . . . Legs 980 | . 814 166 Wheels 423 | 75 115 233 Hover . | . . . Flight . | . . . Fastest Speed 50 | 50 80 95 Average Speed 137 | 77 142 139 Slowest Speed 300 | 80 300 190 Overloaded Moves . | . . . Propulsion Burnouts . | . . . Robots Hopped . | . . . Potential Cave-ins . | . . . Cave-ins Triggered . | . . . Exploration Rate (%) 51 | 5 93 57 Regions Visited 2 Branch Regions 1 Pre-discovered Areas 1 | . . 1 Known Exits Taken . | . . . Unknown Exits Taken 2 | 1 1 . Scrap Searched 1 | . . 1 Spaces Dug . | . . . Terrain Destroyed . | . . . Melee . | . . . Projectile . | . . . AOE . | . . . Terrain Rammed . | . . . Walls Destroyed . | . . . Machines Disabled . | . . . Actions | -11 -10 -10 --------- Run | Yrd Mat Min Total 1703 | 107 1099 497 Wait 52 | . 33 19 Move 1414 | 82 933 399 Hop . | . . . Pick Up 38 | 7 20 11 Fast Attach 15 | 7 5 3 Attach 5 | . 4 1 Detach . | . . . Swap 10 | . 4 6 Drop 26 | . 15 11 Fire 140 | 11 85 44 Melee . | . . . Ram . | . . . Kick . | . . . Crush . | . . . Escape Stasis . | . . . Rewire . | . . . Trap 3 | . . 3 Miscellaneous . | . . . Route ------- -11/Scrapyard -10/Materials (discovered 4 exits: [*Mat x2] / [*Min] / [*Sub]) -10/Mines (discovered 1 exit: [*Mat]) History --------- Turn | Location | Event 46 | -11/Scrapyard | Discovered new exit (range 12) 115 | -11/Scrapyard | Entered Materials 305 | -10/Materials | Build established: Mutant 340 | -10/Materials | Lost 4 parts (1p1n2w) 357 | -10/Materials | Core integrity fell below 50% 397 | -10/Materials | Lost 3 parts (1n1u1w) 581 | -10/Materials | Discovered new exit (range 8) 638 | -10/Materials | Build established: Scavenger-Mutant 795 | -10/Materials | Discovered new exit (range 12) 915 | -10/Materials | Derelicts attacked the area 1116 | -10/Materials | Discovered new exit (range 15) 1226 | -10/Materials | Build established: Mutant 1520 | -10/Materials | Discovered new exit (range 5) 1762 | -10/Materials | Entered Mines 1791 | -10/Mines | Discovered new exit (range 14) 2038 | -10/Mines | Excavation squad dispatched 2038 | -10/Mines | A large section of the Mines collapsed 2113 | -10/Mines | Core integrity fell below 20% 2168 | -10/Mines | Found a hidden stash of uninstalled traps 2439 | -10/Mines | Joined a pair of Derelicts in attacking an 0b10 outpost 2516 | -10/Mines | Destroyed by S-10 Pest with Light Assault Rifle Last Messages --------------- 02443_ Y-45 Defender destroyed. 02445_ Acquired 7 matter. 02446_ Dropped Heat Sink. 02449_ Acquired Lgt. Armor Plating. 02454_ Acquired 10 matter. 02461_ Dropped EM Pulse Gun. 02461_ Acquired Med. Laser. 02464_ Dropped EM Pulse Gun. 02465_ Acquired Beam Rifle. 02469_ 85-8G7(g): "Well that was easy." 02487_ Dropped Assault Rifle. 02487_ Acquired Hvy. Assault Rifle. 02490_ /SU5W#7ZJW5IO Q:ABHBP6CWR 02490_ Dropped Aluminum Leg. 02490_ Acquired Hvy. Assault Rifle. 02495_ Acquired 10 matter. 02507_ S-10 Pest suffers critical hit (Burn). 02507_ 85-8G7(g) destroyed. 02510_ S-10 Pest heat damages Flight Unit. 02513_ S-10 Pest destroyed. Map ----- +----------------------------------------------------+ | #??# ??????????????????? | | # ##??## ??????????????????? | | ## ##????# #???????????????????? | | #####?????# #????????????????????? | | #?????????## ##?????????????????????? | | #??????????## ##??????????????????????? | | #???????????## ## ##???????????????????????? | | ##???????####?## ##??###????????????????????????? | | ??####??## #### #??????????????????????????????? | | ### #### ## #??????????????????????????????? | | ## #??????????????????????????????? | | #??????????????????????????????? | | ## ##??????????????????????????????? | | #### #???????????????????????????????? | | ##??### ##???????????????????????????????? | | % #?????####????????????????????????????????? | | ##?????????????????????????????????????????? | | % ##??????????????????????????????????????????? | | ##???????????????????????????????????????????? | | ###???????????####?????????????????????????????? | | #????????????## ##????????????????????????????? | | ############## #????????????????????????????? | | !*| ########?????????????????????? | | ## ############r ## ##????????????????????? | | ?#=#??????##[!## #????????????????????? | | ?# #??????#"!|=# @ #????????????????????? | | ?# #??????#[!%*+! #????????????????????? | | ?#%#??????#%==[+[ #????????????????????? | | ##[#??????#"!! # == ##????????????????????? | | *%##?????## !## ##g[##?????????????????????? | | != ##?????####### ###s #??????????????????????? | | ##???????????#####?#ts#??????????????????????? | | ###???????????????? ??????????????????????? | | # ##??????????????? ?????????????????????? | | # #??????????????? ????????????????????? | | # #???????????????## ???????????????????? | | # ## ##?????????????????## ??????????????????? | | ###?###????????????????????# ? #?????????????????? | | ##?????????????????????????? ##?????????????????? | | #??????????????????????????? ???????????????????? | | #####????????????????????????????????????????????? | | #????????????????????????????????????????????? | | #######??????????????????????????????????????? | | ##?????????????????????????????????????? | | #?????????????????????????????????????? | | #?????????????????????????????????????? | | ### #?????????????????????????????????????? | | ??## #?????????????????????????????????????? | | ???#### ##?????????????????????????????????????? | | ??????#####??????????????????????????????????????? | +----------------------------------------------------+ Best States ------------- Heat Dissipation 35 Energy Generation 14 Energy Capacity 160 Matter Stores 300 Matter Capacity 300 Sight Range 16 Terrain Scan Density 10 Armor Coverage 150 Evasion (%) 55 Item Schematics ----------------- None Robot Schematics ------------------ None Fabricated ------------ Nothing Repaired ---------- Nothing Alien Tech Used ----------------- None Achievements -------------- None Challenges ------------ None Game ------ Seed ThermoelectricHeavyAirjet Manual? 0 Play Time 00:15:49 Cumulative 295.8 hours Start 2025.08.10 @ 18:16:45 End 2025.08.10 @ 18:35:14 Sessions 1 Manual Loads 0 Difficulty Rogue Special Mode None Game No. 262 Rogue 262 Adventurer 0 Explorer 0 Win Type - Total 1 Types 1/0/0/0/0/0/0/0/0/0 Lore% 67 Gallery% 64 Achievement% 50 Wizard Run 0 Options --------- Layout 2 ASCII 1 Keyboard 1 Movement Numpad Keybinds 0 Fullscreen 2 Font 32/TamsynBold Map View 50x44 Zoom Use 0% Tactical HUD 1 Map Filters NONE Filters NONE Steam 1 RUN: 46cae65b-c8b1-401e-aad6-bc4404d3ee0b